[Event "BL 2024-25"]
[Site "Austria"]
[Date "2024.10.11"]
[Round "3.30"]
[White "Mikes, Jan"]
[Black "Bacrot, Etienne"]
[Result "1-0"]
[Annotator "TA"]
[ECO "B90"]
[WhiteElo "2349"]
[BlackElo "2658"]
[PlyCount "59"]
[EventDate "2024.08.28"]
[EventType "team-tourn"]
[EventCountry "AUT"]
[SourceTitle "playchess.com"]
[Source "ChessBase"]
[SourceQuality "1"]
[WhiteTeam "Mistelbach"]
[BlackTeam "Linz"]
[TimeControl "40/5400+30:1800+30"]

{[%evp 10,59,29,-8,48,-17,38,21,23,0,0,0,22,2,10,-7,0,0,0,-17,-25,-26,-26,-22,0,0,-9,-39,-2,-24,0,0,0,0,0,0,90,115,200,203,208,183,216,206,257,241,237,229,293,308,398,369]} 1. e4 {[%emt 0:00:03]} c5 {[%emt 0:00:06]} 2. Nf3 {[%emt 0:00:09]} d6 {[%emt 0:00:05]} 3. d4 {[%emt 0:00:06]} cxd4 {[%emt 0:00:05]} 4. Nxd4 {[%emt 0:00:03]} Nf6 {[%emt 0:00:06]} 5. Nc3 {[%emt 0:00:06]} a6 {[%emt 0:00:03]} 6. Rg1 {[%emt 0:00:59]} h5 {[%emt 0:01:48]} (6... b5 $11) 7. h3 {[%emt 0:01:04]} (7. Bg5 $14) 7... h4 {[%emt 0:01:08]} ({Better is} 7... b5 $1 $11) 8. Be3 {[%emt 0:01:54]} Nbd7 {[%emt 0:05:39] The position is equal.} 9. g4 {[%emt 0:04:44] [#] g5 would now be deadly.} hxg3 {[%emt 0:00:49]} 10. Rxg3 {[%emt 0:00:19]} Qc7 {[%emt 0:04:13]} 11. Qe2 {[%emt 0:04:34]} e5 {[%emt 0:04:20]} 12. Nb3 {[%emt 0:02:24]} b5 {[%emt 0:01:16]} 13. O-O-O {[%emt 0:06:16]} Bb7 {[%emt 0:07:35]} 14. Bg2 {[%emt 0:03:10]} Rc8 {[%emt 0:04:25]} 15. Kb1 {[%emt 0:01:51]} Nh5 {[%emt 0:08:19]} 16. Rg4 {[%emt 0:02:54]} Nhf6 {[%emt 0:10:47]} 17. Rg3 {[%emt 0:00:16]} g6 {[%emt 0:00:18]} 18. Bg5 {[%emt 0:04:57]} Be7 {[%emt 0:01:05] Threatening ...Nh5.} 19. h4 {[%emt 0:03:51]} Nh5 {[%emt 0:03:55]} (19... b4 $5 20. Nd5 $8 Bxd5 21. exd5 Nh5 $11) 20. Rgd3 {[%emt 0:08:08]} b4 {[%emt 0:19:08] [#] Threatens to win with ...Bxg5.} 21. Bxe7 {[%emt 0:02:03]} Kxe7 {[%emt 0:01:29]} 22. Rxd6 $1 {[%emt 0:01:18]} Ndf6 {[%emt 0:03:35]} (22... Nhf6 $1 $11 {remains equal.} 23. Bh3 Rcd8 24. Nd5+ Bxd5 (24... Kxd6 $2 25. Nxc7+ Kxc7 26. Qc4+ Kb8 27. Qxb4 $18) 25. R6xd5 Rxh4 (25... Nxd5 26. exd5 Kf8 27. d6 $14)) 23. Na4 $16 {[%emt 0:12:33][%cal Bc3a4,Ba4c5,Bc5d3,Bd3e5][%mdl 32] Qd2 is the strong threat. Some like it hot. White has more active pieces.} Rhd8 {[%emt 0:00:27]} (23... Qxd6 $2 {perishes.} 24. Rxd6 Kxd6 25. Qd2+ Kc7 26. Qxb4 $18) (23... Nf4 $16 {was called for.} 24. Qd2 Qxc2+ (24... Nxg2 $2 {loses.} 25. Qg5 $18) (24... Bxe4 $2 25. Qxb4 Bxc2+ 26. Ka1 $18) 25. Qxc2 Rxc2 26. Kxc2 Nxg2) 24. Rxd8 $18 {[%emt 0:01:09]} Rxd8 {[%emt 0:00:04]} 25. Rxd8 {[%emt 0:00:28]} Qxd8 {[%emt 0:00:01]} 26. Bf3 {[%emt 0:03:07]} Kf8 {[%emt 0:03:28]} 27. Nac5 {[%emt 0:02:12]} Bc8 {[%emt 0:00:26]} 28. Nd3 {[%emt 0:01:17]} (28. Nxa6 Nf4 29. Qc4 Bxa6 30. Qxa6 Nh7 $14) 28... a5 {[%emt 0:02:59]} 29. Nxe5 {[%emt 0:00:39]} Qc7 {[%emt 0:00:31]} 30. Qb5 {[%emt 0:00:59] Weighted Error Value: White=0.12 (very precise) /Black=0.31.  Mistake:       	White=1     	Black=3      Inaccurate:     	White=1     	Black=1      OK:         	White=9     	Black=5      Best:        	White=3     	Black=1      Strong:       	White=1     	---} 1-0

[Event "BL 2024-25"]
[Site "Austria"]
[Date "2024.10.11"]
[Round "3.31"]
[White "Dragnev, Valentin"]
[Black "Abasov, Nijat"]
[Result "1-0"]
[Annotator "TA"]
[ECO "C50"]
[WhiteElo "2562"]
[BlackElo "2619"]
[PlyCount "77"]
[EventDate "2024.08.28"]
[EventType "team-tourn"]
[EventCountry "AUT"]
[SourceTitle "playchess.com"]
[Source "ChessBase"]
[SourceQuality "1"]
[WhiteTeam "Ottakring"]
[BlackTeam "Feffernitz"]
[TimeControl "40/5400+30:1800+30"]

{[%evp 13,77,9,8,14,23,16,19,12,12,0,0,0,22,23,20,12,31,29,32,31,38,38,22,16,48,22,55,15,18,17,0,14,47,33,51,45,83,81,152,164,162,164,147,82,184,111,119,109,112,97,250,116,189,200,257,245,373,364,358,350,1064,1017,2245,2001,29981,638]} 1. e4 {[%emt 0:00:03]} e5 {[%emt 0:00:05]} 2. Nf3 {[%emt 0:00:16]} Nc6 {[%emt 0:00:06]} 3. Bc4 {[%emt 0:00:24]} Nf6 {[%emt 0:00:12]} 4. d3 {[%emt 0:00:17]} Bc5 {[%emt 0:00:23]} 5. O-O {[%emt 0:01:26]} h6 {[%emt 0:02:15]} 6. Nc3 {[%emt 0:02:27]} O-O {[%emt 0:04:44]} 7. a3 {[%emt 0:01:41]} d6 {[%emt 0:12:00]} 8. Na4 {[%emt 0:00:47]} Bb6 {[%emt 0:05:38]} 9. c3 {[%emt 0:04:04]} Ne7 {[%emt 0:02:40]} 10. Nxb6 {[%emt 0:01:51] The position is equal.} axb6 {[%emt 0:00:17]} 11. Bb3 {[%emt 0:00:23]} Ng6 {[%emt 0:00:12]} 12. Re1 {[%emt 0:00:36]} Be6 {[%emt 0:08:43]} 13. Bc2 {[%emt 0:03:08]} c6 {[%emt 0:03:58]} 14. d4 {[%emt 0:03:01]} Qc7 {[%emt 0:00:09]} 15. Be3 {[%emt 0:01:18]} Rfe8 {[%emt 0:03:18]} 16. h3 {[%emt 0:01:19]} b5 {[%emt 0:00:16]} 17. Nd2 {[%emt 0:02:29]} Rad8 {[%emt 0:02:25]} 18. Qf3 {[%emt 0:11:26][%cal Oe3h6]} Nh7 {[%emt 0:05:16]} 19. d5 {[%emt 0:13:01]} Bc8 {[%emt 0:00:56]} 20. dxc6 {[%emt 0:04:58]} bxc6 {[%emt 0:00:58]} 21. a4 {[%emt 0:02:23]} bxa4 {[%emt 0:00:34]} 22. Rxa4 {[%emt 0:03:10]} Be6 {[%emt 0:00:45]} 23. Rea1 {[%emt 0:01:27]} Rb8 {[%emt 0:02:39]} 24. b4 {[%emt 0:01:53]} Qd8 {[%emt 0:12:47]} 25. Ra6 {[%emt 0:07:50]} Ne7 {[%emt 0:01:10]} (25... Ng5 $142 26. Qg3 c5) 26. Qg3 $16 {[%emt 0:03:19]} Kh8 {[%emt 0:00:57]} 27. f4 {[%emt 0:00:53]} f6 {[%emt 0:00:50]} 28. Ra7 {[%emt 0:04:39] Black is weak on the dark squares} ({White should try} 28. f5 Bc8 29. Ra7) 28... Rg8 {[%emt 0:04:56]} (28... exf4 $16 29. Bxf4 Ng5) 29. Nf3 {[%emt 0:07:22]} (29. f5 $18 Bd7 30. Nf3) 29... Nc8 {[%emt 0:01:09]} 30. R7a6 {[%emt 0:02:51] White has more active pieces.} Bc4 {[%emt 0:00:22]} 31. R6a5 $36 {[%emt 0:02:41][%cal Rf4e5][%mdl 2048] Keeping Black busy.} (31. Rxc6 $6 Bb5 32. Rca6 (32. Nh4 g5 $17) 32... Bxa6 33. Rxa6 Qc7 $11) 31... Nf8 $2 {[%emt 0:08:08]} (31... Bf7 $16 32. Kh2 Qc7) 32. Nh4 {[%emt 0:03:22]} (32. fxe5 $1 $18 {and the rest is easy.} fxe5 33. Rxe5) 32... exf4 {[%emt 0:01:10]} (32... Nd7 $16 33. Qg4 Bf7) 33. Bxf4 $18 {[%emt 0:00:23][%cal Oe4e5]} g5 {[%emt 0:00:07][%cal Ob8b7] [#]} 34. Be3 $1 {[%emt 0:04:32]} gxh4 {[%emt 0:00:20]} (34... Ne7 $142 35. Nf3 (35. Nf5 Nxf5 36. Rxf5 Rb5 $18) 35... Rb7) 35. Qxh4 {[%emt 0:00:01]} Rb7 {[%emt 0:01:59] And now ...Ng6 would win.} 36. Rh5 {[%emt 0:00:54]} (36. Qxh6+ $2 Rh7 37. Qf4 Ng6 $19 (37... Rxh3 38. Bd4 $17)) (36. Bxh6 Ng6 37. Qf2 Ne5 $17) 36... Be2 $2 {[%emt 0:07:54]} (36... Rh7 37. e5 (37. Bxh6 Ng6 $17) (37. Rxh6 Rxh6 38. Bxh6 Ng6 $16) 37... Bd5 38. Bxh7 (38. exf6 $2 {loses.} Rxg2+ 39. Kf1 Rxc2 $19) 38... Rxg2+ 39. Kf1 Nxh7 40. Rxh6 (40. Bxh6 $2 Qg8 $19) 40... Rg7 (40... Qg8 $2 41. Qxf6+ Rg7 42. e6 $18) 41. exf6 Rf7) 37. Rxh6+ {[%emt 0:00:28]} Nh7 {[%emt 0:00:04]} 38. Bd4 {[%emt 0:01:17] A strong pair of Bishops.} Rf7 {[%emt 0:04:24] [#]} 39. Rxh7+ $1 {[%emt 0:00:32][%mdl 512] Weighted Error Value: White=0.15 (very precise) /Black=0.49.  Mistake:       	White=3     	Black=6      Inaccurate:     	White=2     	Black=5      OK:         	White=10    	Black=9      Best:        	White=2     	Black=2      Strong:       	White=1     	---} 1-0

[Event "BL 2024-25"]
[Site "Austria"]
[Date "2024.10.11"]
[Round "3.32"]
[White "Karthik Venkataraman"]
[Black "Papp, Gabor"]
[Result "*"]
[Annotator "RC"]
[ECO "B30"]
[WhiteElo "2581"]
[BlackElo "2508"]
[PlyCount "48"]
[EventDate "2024.08.28"]
[EventType "team-tourn"]
[EventCountry "AUT"]
[SourceTitle "playchess.com"]
[Source "ChessBase"]
[SourceQuality "1"]
[WhiteTeam "Feffernitz"]
[BlackTeam "Ottakring"]
[TimeControl "40/5400+30:1800+30"]

1. e4 {[%emt 0:00:04]} c5 {[%emt 0:00:06]} 2. Nc3 {[%emt 0:00:04]} Nc6 {[%emt 0:01:28]} 3. Nf3 {[%emt 0:00:18]} e5 {[%emt 0:00:22]} 4. Bc4 {[%emt 0:00:10]} Be7 {[%emt 0:00:24]} 5. d3 {[%emt 1:32:24]} d6 {[%emt 0:00:04]} 6. a4 {[%emt 0:00:10]} Nf6 {[%emt 0:05:00]} 7. Bg5 {[%emt 0:00:32]} O-O {[%emt 1:26:36]} 8. Bxf6 {[%emt 1:33:06]} Bxf6 {[%emt 0:00:10]} 9. Nd5 {[%emt 0:00:04]} a6 {[%emt 0:06:19]} 10. c3 {[%emt 0:13:50]} Rb8 {[%emt 0:02:00]} 11. O-O {[%emt 0:00:14]} g6 {[%emt 0:00:14]} 12. Qd2 {[%emt 0:06:04]} Bg4 {[%emt 0:00:28]} 13. Qe3 {[%emt 0:06:29]} Be6 {[%emt 0:00:08]} 14. Nxf6+ {[%emt 0:06:09]} Qxf6 {[%emt 0:00:06]} 15. Nd2 {[%emt 0:00:01]} Bxc4 {[%emt 0:21:56]} 16. dxc4 {[%emt 0:00:41]} Qe6 {[%emt 0:00:20]} 17. Qd3 {[%emt 0:02:00]} f5 {[%emt 0:08:52]} 18. Qd5 {[%emt 0:57:16]} Qxd5 {[%emt 0:01:12]} 19. cxd5 {[%emt 0:00:05]} Ne7 {[%emt 0:01:49]} 20. f3 {[%emt 0:01:47]} Rf7 {[%emt 0:11:59]} 21. b4 {[%emt 0:07:30]} cxb4 {[%emt 0:03:52]} 22. cxb4 {[%emt 0:00:22]} fxe4 {[%emt 0:00:55]} 23. fxe4 {[%emt 0:00:05]} Rf3 {[%emt 0:31:48]} 24. Rf2 Rxf2 {[%emt 0:00:00]} *

[Event "BL 2024-25"]
[Site "Austria"]
[Date "2024.10.11"]
[Round "3.32"]
[White "Karthik Venkataraman"]
[Black "Papp, Gabor"]
[Result "1/2-1/2"]
[Annotator "TA"]
[ECO "B30"]
[WhiteElo "2581"]
[BlackElo "2508"]
[PlyCount "117"]
[EventDate "2024.08.28"]
[EventType "team-tourn"]
[EventCountry "AUT"]
[SourceTitle "playchess.com"]
[Source "ChessBase"]
[SourceQuality "1"]
[WhiteTeam "Feffernitz"]
[BlackTeam "Ottakring"]
[TimeControl "40/5400+30:1800+30"]

{[%evp 9,117,22,31,22,27,23,21,18,24,20,23,23,15,16,17,18,27,18,27,11,10,3,16,14,12,16,16,8,50,51,56,54,65,22,25,22,42,45,48,40,56,26,31,9,22,7,7,7,7,7,7,7,14,14,14,8,16,7,7,7,7,7,7,7,7,7,7,0,7,0,7,7,7,7,7,7,7,7,7,7,7,7,7,7,7,7,7,7,7,0,7,0,7,7,4,0,7,0,7,7,9,9,10,10,10,14,14,14,14,14]} 1. e4 {[%emt 0:00:04]} c5 {[%emt 0:00:06]} 2. Nc3 {[%emt 0:00:04]} Nc6 {[%emt 0:01:28]} 3. Nf3 {[%emt 0:00:18]} e5 {[%emt 0:00:22]} 4. Bc4 {[%emt 0:00:10]} Be7 {[%emt 0:00:24]} 5. d3 {[%emt 0:00:06]} d6 {[%emt 0:00:04]} 6. a4 {[%emt 0:00:10]} Nf6 {[%emt 0:05:00]} 7. Bg5 {[%emt 0:00:32]} O-O {[%emt 0:02:28]} 8. Bxf6 {[%emt 0:05:18]} Bxf6 {[%emt 0:00:10]} 9. Nd5 {[%emt 0:00:04]} a6 {[%emt 0:06:19]} 10. c3 {[%emt 0:13:50]} Rb8 {[%emt 0:02:00]} 11. O-O {[%emt 0:00:14]} g6 {[%emt 0:00:14]} 12. Qd2 {[%emt 0:06:04]} Bg4 {[%emt 0:00:28]} 13. Qe3 {[%emt 0:06:29]} Be6 {[%emt 0:00:08]} 14. Nxf6+ {[%emt 0:06:09]} Qxf6 {[%emt 0:00:06]} 15. Nd2 {[%emt 0:00:01]} Bxc4 {[%emt 0:21:56]} 16. dxc4 {[%emt 0:00:41][%cal Bd3c4,Bc4d5][%mdl 32]} Qe6 {[%emt 0:00:20]} 17. Qd3 {[%emt 0:02:00]} f5 {[%emt 0:08:52]} 18. Qd5 {[%emt 0:06:16]} Qxd5 {[%emt 0:01:12]} 19. cxd5 {[%emt 0:00:05]} Ne7 {[%emt 0:01:49]} 20. f3 {[%emt 0:01:47]} Rf7 {[%emt 0:11:59]} 21. b4 {[%emt 0:07:30]} cxb4 {[%emt 0:03:52]} 22. cxb4 {[%emt 0:00:22]} fxe4 {[%emt 0:00:55]} 23. fxe4 {[%emt 0:00:05]} Rxf1+ {[%emt 0:00:52]} 24. Kxf1 $11 {[%emt 0:00:52][%mdl 4096] Endgame. KRN-KRN} Rc8 {[%emt 0:00:18] Dodges Nc4} 25. Ke2 {[%emt 0:00:04] Threatening Kd3.} Rc3 {[%emt 0:01:26]} 26. Kd1 {[%emt 0:13:02]} Kf7 {[%emt 0:30:42] The position is equal.} 27. Rc1 {[%emt 0:00:07]} Rxc1+ {[%emt 0:00:00]} 28. Kxc1 {[%emt 0:00:03] KN-KN} Ng8 {[%emt 0:00:00]} 29. Kd1 {[%emt 0:08:42]} Nf6 {[%emt 0:00:00]} 30. Ke2 {[%emt 0:00:04]} b5 {[%emt 0:00:00]} 31. axb5 {[%emt 0:05:21]} axb5 {[%emt 0:00:00]} 32. Kf3 {[%emt 0:00:01]} Ne8 {[%emt 0:00:00]} 33. Nb3 {[%emt 0:00:15]} Kf6 {[%emt 0:00:00]} 34. Na5 {[%emt 0:00:46]} h5 {[%emt 0:00:00]} 35. Nc6 {[%emt 0:00:30]} g5 {[%emt 0:00:00]} 36. Na7 {[%emt 0:10:27]} Nc7 {[%emt 0:00:00]} 37. Nc8 {[%emt 0:00:03]} Ne8 {[%emt 0:00:00]} 38. Na7 {[%emt 0:00:04]} Nc7 {[%emt 0:00:00]} 39. Nc8 {[%emt 0:00:03]} Ne8 {[%emt 0:00:00]} 40. Kg3 {[%emt 0:00:04]} Kf7 {[%emt 0:00:00]} 41. Kf2 {[%emt 0:35:28]} Kf6 {[%emt 0:29:41]} 42. Ke2 {[%emt 0:00:06]} Kf7 {[%emt 0:00:06]} 43. Kd3 {[%emt 0:00:04]} Kf6 {[%emt 0:00:10]} 44. Kc2 {[%emt 0:00:14]} Kf7 {[%emt 0:00:10]} 45. Kd2 {[%emt 0:00:06]} Kf6 {[%emt 0:00:04]} 46. Kd3 {[%emt 0:00:05]} Kf7 {[%emt 0:00:14]} 47. Na7 {[%emt 0:00:04]} Nc7 {[%emt 0:00:03]} 48. Nc6 {[%emt 0:00:05]} Kf6 {[%emt 0:01:39]} 49. Na5 {[%emt 0:00:40]} Ne8 {[%emt 0:00:21]} 50. Nb3 {[%emt 0:00:50]} Kf7 {[%emt 0:01:27]} 51. Nc1 {[%emt 0:00:37]} Kf6 {[%emt 0:01:01]} 52. Ne2 {[%emt 0:00:11]} Kg6 {[%emt 0:00:10]} 53. Ke3 {[%emt 0:01:57]} (53. Nc3 $5 Nc7 $8 54. Nd1 $11) 53... Kf6 {[%emt 0:03:01]} 54. Ng3 {[%emt 0:01:56]} (54. Nc3 $5 Nc7 $8 55. Kd3 $11) 54... Kg6 {[%emt 0:02:35]} 55. Nf5 {[%emt 0:01:48]} Kf6 {[%emt 0:00:07]} 56. Kf3 {[%emt 0:00:10]} Kf7 {[%emt 0:00:21]} 57. Kg3 {[%emt 0:00:11]} Kf6 {[%emt 0:00:12]} 58. h4 {[%emt 0:00:05]} g4 {[%emt 0:00:09]} 59. Kf2 {[%emt 0:00:12] Weighted Error Value: White=0.04 (flawless) /Black=0.03 (flawless) .  Inaccurate:     	White=2     	Black=1      OK:         	White=17    	Black=25     Best:        	---       	Black=2} 1/2-1/2

[Event "BL 2024-25"]
[Site "Austria"]
[Date "2024.10.11"]
[Round "3.33"]
[White "Peyrer, Konstantin"]
[Black "Ghosh, Diptayan"]
[Result "0-1"]
[Annotator "TA"]
[ECO "E11"]
[WhiteElo "2415"]
[BlackElo "2566"]
[PlyCount "64"]
[EventDate "2024.08.28"]
[EventType "team-tourn"]
[EventCountry "AUT"]
[SourceTitle "playchess.com"]
[Source "ChessBase"]
[SourceQuality "1"]
[WhiteTeam "Ottakring"]
[BlackTeam "Feffernitz"]
[TimeControl "40/5400+30:1800+30"]

{[%evp 12,64,15,4,42,26,39,27,21,32,42,38,32,31,50,50,50,50,55,27,43,48,41,0,23,19,46,34,48,0,18,13,29,-41,-19,-45,-40,-54,-54,-107,-133,-130,-124,-125,-121,-456,-465,-468,-464,-548,-537,-531,-509,-641,-582]} 1. d4 {[%emt 0:00:08]} d5 {[%emt 0:00:28]} 2. Nf3 {[%emt 0:00:17]} Nf6 {[%emt 0:00:06]} 3. c4 {[%emt 0:00:05]} e6 {[%emt 0:00:21]} 4. g3 {[%emt 0:00:15]} Bb4+ {[%emt 0:01:11]} 5. Bd2 {[%emt 0:00:36]} a5 {[%emt 0:00:04]} 6. Bg2 {[%emt 0:00:49]} O-O {[%emt 0:00:07]} 7. Qc2 {[%emt 0:00:10]} c5 {[%emt 0:00:36]} 8. cxd5 {[%emt 0:00:08]} cxd4 {[%emt 0:00:09]} 9. Nxd4 {[%emt 0:00:06]} Qb6 {[%emt 0:00:12] White has an edge.} 10. e3 {[%emt 0:00:19]} exd5 {[%emt 0:00:05]} 11. O-O {[%emt 0:00:13]} Nc6 {[%emt 0:00:06]} 12. Nxc6 {[%emt 0:00:15]} bxc6 {[%emt 0:00:03]} 13. Rc1 {[%emt 0:00:08]} Rb8 {[%emt 0:00:09]} 14. Nc3 {[%emt 0:00:36]} (14. Qxc6 Qxc6 15. Rxc6 Bxd2 16. Nxd2 Rxb2 $17) 14... h5 {[%emt 0:00:05]} 15. a3 {[%emt 0:01:10]} Be7 {[%emt 0:02:15]} 16. Na4 {[%emt 0:00:26][%csl LRb6,LRc6]} Qc7 {[%emt 0:00:37]} 17. h4 {[%emt 0:11:02][%cal Od2c3]} Re8 {[%emt 0:18:56]} 18. Be1 {[%emt 0:33:14]} (18. Qxc6 Qxc6 19. Rxc6 Bd7 $17) (18. Bc3 {keeps more tension.} Ng4 19. Bd4 Bf6 20. Bxd5 Nxe3 21. fxe3 Bxd4 22. exd4 Qxg3+ 23. Bg2) 18... Ba6 {[%emt 0:08:22]} 19. b3 {[%emt 0:03:27]} (19. Qxc6 Qxc6 20. Rxc6 Bb5 21. Rxf6 Bxf6 $19) 19... Bb7 {[%emt 0:08:32]} 20. Nc5 {[%emt 0:09:48]} (20. Bc3 {seems wilder.} Ng4 21. Bf3 Bd6 22. Bd4) 20... Bc8 {[%emt 0:07:45]} 21. Qd3 {[%emt 0:01:37]} Qa7 {[%emt 0:09:28]} 22. Na4 {[%emt 0:09:05]} (22. b4 $11) 22... Ng4 $15 {[%emt 0:09:45]} 23. Qc3 {[%emt 0:02:41]} (23. Rxc6 Ne5 24. Qxd5 Nxc6 25. Qxc6 Rd8 $19) 23... Bf6 {[%emt 0:07:22]} 24. Qxc6 {[%emt 0:00:20]} Rxe3 {[%emt 0:00:55]} 25. Qc5 {[%emt 0:06:16]} (25. Ra2 $1 $15) 25... Qxc5 $17 {[%emt 0:02:39]} 26. Nxc5 {[%emt 0:03:49]} Bxa1 {[%emt 0:02:12]} 27. Rxa1 {[%emt 0:00:05]} Re2 {[%emt 0:02:19]} 28. Bxd5 $2 {[%emt 0:00:11][%mdl 8192] [#] White does not recover from this.} (28. Bxa5 $17 Bf5 (28... Rxf2 29. Bc7 $17) (28... Nxf2 $2 29. Re1 $19) 29. Bxd5) 28... Re5 $1 $19 {[%emt 0:01:57][%cal Be2e5,Be5c5,Bc5c4][%mdl 32] Black is clearly winning.} 29. Rd1 {[%emt 0:00:36]} Nf6 {[%emt 0:00:24]} 30. Bc4 {[%emt 0:01:23]} Rxc5 {[%emt 0:03:41]} 31. Rd8+ {[%emt 0:00:07]} Kh7 {[%emt 0:00:03]} 32. Bc3 {[%emt 0:00:10] [#]} Rxc4 $1 {[%emt 0:00:13] Weighted Error Value: White=0.47/Black=0.06 (flawless) .  Loses game:     	White=1     	---        Mistake:       	White=2     	---        Inaccurate:     	White=4     	Black=1      OK:         	White=12    	Black=6      Best:        	---       	Black=8      Strong:       	---       	Black=1} 0-1

[Event "BL 2024-25"]
[Site "Austria"]
[Date "2024.10.11"]
[Round "3.34"]
[White "Kunin, Vitaly"]
[Black "Froewis, Georg"]
[Result "1-0"]
[Annotator "TA"]
[ECO "D50"]
[WhiteElo "2528"]
[BlackElo "2429"]
[PlyCount "79"]
[EventDate "2024.08.28"]
[EventType "team-tourn"]
[EventCountry "AUT"]
[SourceTitle "playchess.com"]
[Source "ChessBase"]
[SourceQuality "1"]
[WhiteTeam "Feffernitz"]
[BlackTeam "Ottakring"]
[TimeControl "40/5400+30:1800+30"]

{[%evp 9,79,-2,0,-56,54,42,48,70,58,-15,22,-104,-99,-123,-116,-112,-46,-19,-23,-7,-15,-8,-16,-10,-12,-18,0,0,0,0,-15,-14,0,0,0,0,0,-8,-22,-22,0,0,120,97,100,18,14,15,5,0,0,0,135,97,137,0,0,0,0,0,0,0,5210,4710,29970,29968,29969,218,29976,29977,29978,29975]} 1. d4 {[%emt 0:00:05]} e6 {[%emt 0:00:02]} 2. c4 {[%emt 0:00:31]} d5 {[%emt 0:00:04]} 3. Nc3 {[%emt 0:00:17]} Nf6 {[%emt 0:00:04]} 4. Bg5 {[%emt 0:00:37]} dxc4 {[%emt 0:00:07]} 5. e4 {[%emt 0:00:12] [#]} b5 $1 {[%emt 0:00:44]} 6. Bxf6 {[%emt 0:02:09]} (6. Nxb5 $11 Bb4+ 7. Nc3) (6. e5 h6) 6... gxf6 {[%emt 0:02:06]} (6... Qxf6 $15 7. Nxb5 Bb4+ 8. Nc3 c5 9. Bxc4 Qxd4 (9... Bxc3+ 10. bxc3 cxd4 11. Qxd4 $14)) 7. Nxb5 $14 {[%emt 0:00:13]} Bb4+ {[%emt 0:01:28]} 8. Nc3 {[%emt 0:00:10] White is slightly better.} c5 {[%emt 0:00:16]} 9. dxc5 {[%emt 0:02:54]} ({White should play} 9. d5 $14) 9... Qa5 {[%emt 0:02:54]} 10. Qf3 {[%emt 0:03:25]} (10. Nf3 $11) 10... Nd7 $1 $17 {[%emt 0:06:19][%cal Bb8d7,Bd7e5,Be5d3][%mdl 1056] Black has strong compensation.} (10... Qxc5 11. Qxf6 Rg8 12. Nf3 $11) 11. Be2 {[%emt 0:11:30]} Bb7 {[%emt 0:19:10]} (11... Qxc5 12. Nh3 $15) (11... Nxc5 12. Bxc4 Bb7 13. Nge2 Nxe4 (13... Bxe4 14. Qxf6 Rg8 15. O-O-O $11) 14. O-O $15) 12. Rc1 {[%emt 0:00:08]} O-O-O {[%emt 0:13:35]} ({Black should try} 12... Rg8 $17 13. Nh3 Nxc5 (13... Ne5 14. Qxf6 Bxc3+ 15. Rxc3 $14)) 13. Nh3 $15 {[%emt 0:02:06]} Ne5 {[%emt 0:01:18]} (13... Nxc5 14. O-O $14) 14. Qxf6 {[%emt 0:00:46]} Nd3+ {[%emt 0:06:41]} (14... Qxc5 15. O-O $14) 15. Bxd3 {[%emt 0:00:10]} cxd3 {[%emt 0:00:02]} 16. O-O {[%emt 0:03:52]} d2 {[%emt 0:01:35]} (16... Bxc5 $2 17. Nb1 (17. Qxf7 Kb8 $16) 17... d2 (17... Bxe4 $2 18. Qe5 $18) 18. Nxd2 (18. Qxf7 $2 dxc1=N 19. Rxc1 Kb8 $19) 18... Qxd2 19. Ng5 $18 (19. Rxc5+ Kb8 $18)) 17. Rcd1 {[%emt 0:01:39] And now Ng5 would win.} Bxc3 {[%emt 0:27:16]} (17... Qxc5 18. Rxd2 (18. Qxf7 Qb6 $11) 18... Rxd2 19. Qxh8+ Qf8 20. Qf6 $18 (20. Qxh7 Rxb2 $18)) (17... Ba6 $5 18. Qxf7 Bxf1 19. Qxe6+ Kb8 20. Kxf1 (20. Rxf1 $2 Bxc3 21. Qb3+ Qb4 $19) (20. Qe5+ $2 Ka8 $19) 20... Bxc3 21. bxc3 Qb5+ 22. c4 Qxc5 $14) 18. bxc3 {[%emt 0:00:57]} Ba6 {[%emt 0:00:04]} 19. Qxf7 $1 {[%emt 0:03:56]} Bxf1 {[%emt 0:00:06]} 20. Qxe6+ {[%emt 0:00:18]} Kb8 {[%emt 0:00:05]} 21. Kxf1 {[%emt 0:01:36] Strongly threatening Qb3+.} (21. Rxf1 $2 {too greedy.} d1=Q (21... d1=R $2 22. Qb3+ Kc7 23. Rxd1 $19) 22. g3 Rhe8 $19) 21... Qb5+ {[%emt 0:00:13]} 22. c4 $1 {[%emt 0:02:39]} Qa4 {[%emt 0:00:07][%cal Ra4d1]} 23. Qg4 {[%emt 0:01:25]} Rhe8 {[%emt 0:01:49][%cal Bh8e8,Be8e6,Be6b6,Bb6d6,Bd6d4,Bd4e4,Be4e5][%mdl 32]} 24. Qg3+ $1 {[%emt 0:05:10]} Ka8 {[%emt 0:00:22][%cal Ra4d1]} 25. Qb3 {[%emt 0:00:07]} Qc6 {[%emt 0:05:51]} (25... Qxb3 $1 $11 26. axb3 Rxe4) 26. f3 $1 $16 {[%emt 0:01:17]} Qxc5 {[%emt 0:00:06]} 27. Nf2 {[%emt 0:00:39]} (27. Nf4 $16) 27... Re6 $11 {[%emt 0:01:43]} 28. Ke2 {[%emt 0:08:11][%cal Oh2h4]} Rb6 $132 {[%emt 0:00:55][%mdl 2048] Black is not holding back} 29. Qc3 {[%emt 0:00:54]} Rbd6 {[%emt 0:00:06] Inhibits Nd3.} 30. Ng4 {[%emt 0:00:36]} Qh5 {[%emt 0:04:28]} (30... Ra6 $1 $11 {keeps the balance.} 31. Qb3 Ra3) 31. c5 {[%emt 0:04:23][%cal Bc4c5,Bc5c6,Bc6c7][%mdl 32]} Rd4 {[%emt 0:00:04]} 32. Ne3 {[%emt 0:04:47]} ({White must play} 32. h3 $1 $16) 32... Rxe4 {[%emt 0:02:02][%cal Od8e8] ...Rde8! would now be deadly.} (32... Qxh2 33. c6 R4d6 34. c7 $14) 33. Rxd2 {[%emt 0:02:40]} Rde8 {[%emt 0:00:39]} 34. Rd3 {[%emt 0:00:08]} R4e5 {[%emt 0:00:43]} 35. c6 {[%emt 0:02:27] c7 is the strong threat.} Qxh2 $2 {[%emt 0:01:56][%mdl 8192] [#]} (35... Rc5 $11 36. Qd4 Rxc6) 36. c7 $1 $18 {[%emt 0:01:34][%cal Rc3c6]} Qxg2+ {[%emt 0:00:25] [#]} 37. Kd1 $1 {[%emt 0:00:13][%cal Rc3c6]} Qxf3+ {[%emt 0:00:05]} 38. Kc2 $2 {[%emt 0:00:19]} (38. Kd2 {mates} Qf2+ 39. Kc1 Qg1+ 40. Kc2 Qf2+ 41. Rd2 Qxd2+ 42. Kxd2 Kb7 43. c8=R Rxc8 44. Qxe5) 38... Rc8 $2 {[%emt 0:01:35]} ({Weaker is} 38... Rxe3 39. c8=Q+ Rxc8 40. Qxc8#) (38... Kb7 $18) 39. Qxe5 {[%emt 0:01:52]} Qe2+ {[%emt 0:01:34]} 40. Rd2 {[%emt 0:01:17] Weighted Error Value: White=0.34/Black=0.32.  Loses game:     	---       	Black=1      Mistake:       	White=4     	Black=4      Inaccurate:     	---       	Black=2      OK:         	White=10    	Black=13     Best:        	White=5     	Black=5      Strong:       	White=5     	Black=1} 1-0